[Event "Masters Tournament (MTO)"]
[Site "Biel, Switzerland"]
[Date "2026.07.17"]
[Round "5.42"]
[White "Celis, Joel"]
[Black "Hajduk, Tomasz"]
[Result "1-0"]
[TimeControl "100+30+30sec/move"]
[WhiteTitle "-"]
[BlackTitle "-"]
[WhiteFideId "15400212"]
[BlackFideId "21811415"]
[WhiteElo "1981"]
[BlackElo "1921"]

1. Nf3 {[%clk 01:40:51]} {[%emt 00:00:08]} c5 {[%clk 01:40:44]} {[%emt
00:00:17]} 2. b3 {[%clk 01:41:09]} {[%emt 00:00:13]} Nf6 {[%clk 01:40:54]}
{[%emt 00:00:21]} 3. Bb2 {[%clk 01:41:23]} {[%emt 00:00:15]} e6 {[%clk
01:40:59]} {[%emt 00:00:25]} 4. e3 {[%clk 01:41:33]} {[%emt 00:00:20]} Nc6
{[%clk 01:41:08]} {[%emt 00:00:22]} 5. Bb5 {[%clk 01:41:49]} {[%emt 00:00:15]}
Be7 {[%clk 01:40:53]} {[%emt 00:00:44]} 6. O-O {[%clk 01:41:57]} {[%emt
00:00:22]} O-O {[%clk 01:41:06]} {[%emt 00:00:16]} 7. Bxc6 {[%clk 01:41:08]}
{[%emt 00:01:20]} bxc6 {[%clk 01:41:26]} {[%emt 00:00:10]} 8. d3 {[%clk
01:41:04]} {[%emt 00:00:34]} d5 {[%clk 01:39:42]} {[%emt 00:02:13]} 9. Ne5
{[%clk 01:37:12]} {[%emt 00:04:21]} Qc7 {[%clk 01:39:34]} {[%emt 00:00:40]} 10.
f4 {[%clk 01:37:03]} {[%emt 00:00:39]} Ba6 {[%clk 01:21:11]} {[%emt 00:18:52]}
11. Nd2 {[%clk 01:25:39]} {[%emt 00:11:54]} Nd7 {[%clk 01:09:27]} {[%emt
00:12:14]} 12. Nxd7 {[%clk 01:03:45]} {[%emt 00:22:24]} Qxd7 {[%clk 01:09:49]}
{[%emt 00:00:08]} 13. Qg4 {[%clk 01:03:35]} {[%emt 00:00:40]} f6 {[%clk
01:00:59]} {[%emt 00:09:20]} 14. Rf3 {[%clk 00:49:47]} {[%emt 00:14:18]} Rae8
{[%clk 00:54:03]} {[%emt 00:07:26]} 15. h4 {[%clk 00:42:22]} {[%emt 00:07:54]}
Bd8 {[%clk 00:51:18]} {[%emt 00:03:16]} 16. Rg3 {[%clk 00:31:57]} {[%emt
00:10:55]} Qf7 {[%clk 00:32:46]} {[%emt 00:19:02]} 17. h5 {[%clk 00:28:06]}
{[%emt 00:04:21]} Ba5 {[%clk 00:28:05]} {[%emt 00:05:11]} 18. Nf3 {[%clk
00:18:25]} {[%emt 00:10:11]} Bc8 {[%clk 00:28:02]} {[%emt 00:00:33]} 19. h6
{[%clk 00:16:22]} {[%emt 00:02:33]} g6 {[%clk 00:28:07]} {[%emt 00:00:25]} 20.
Nh4 {[%clk 00:08:57]} {[%emt 00:07:54]} Bd8 {[%clk 00:14:10]} {[%emt 00:14:29]}
21. Qe2 {[%clk 00:03:39]} {[%emt 00:05:44]} e5 {[%clk 00:13:48]} {[%emt
00:00:55]} 22. f5 {[%clk 00:03:13]} {[%emt 00:00:55]} g5 {[%clk 00:13:52]}
{[%emt 00:00:27]} 23. e4 {[%clk 00:03:01]} {[%emt 00:00:42]} Kh8 {[%clk
00:13:56]} {[%emt 00:00:26]} 24. Nf3 {[%clk 00:03:12]} {[%emt 00:00:19]} c4
{[%clk 00:12:24]} {[%emt 00:02:03]} 25. dxc4 {[%clk 00:02:23]} {[%emt
00:01:19]} dxc4 {[%clk 00:11:50]} {[%emt 00:01:03]} 26. Qxc4 {[%clk 00:01:38]}
{[%emt 00:01:15]} Qxc4 {[%clk 00:11:02]} {[%emt 00:01:18]} 27. bxc4 {[%clk
00:01:56]} {[%emt 00:00:13]} Bb6+ {[%clk 00:11:05]} {[%emt 00:00:27]} 28. Kf1
{[%clk 00:01:53]} {[%emt 00:00:32]} Ba6 {[%clk 00:11:18]} {[%emt 00:00:17]} 29.
Nd2 {[%clk 00:01:36]} {[%emt 00:00:46]} Rd8 {[%clk 00:10:56]} {[%emt 00:00:53]}
30. Ke2 {[%clk 00:01:20]} {[%emt 00:00:46]} Rd7 {[%clk 00:08:39]} {[%emt
00:02:47]} 31. Rd3 {[%clk 00:01:01]} {[%emt 00:00:50]} Rfd8 {[%clk 00:08:56]}
{[%emt 00:00:12]} 32. Bc3 {[%clk 00:01:00]} {[%emt 00:00:32]} Bc5 {[%clk
00:09:08]} {[%emt 00:00:18]} 33. Rb1 {[%clk 00:01:06]} {[%emt 00:00:19]} Bf8
{[%clk 00:08:11]} {[%emt 00:01:31]} 34. Ba5 {[%clk 00:01:09]} {[%emt 00:00:27]}
Rxd3 {[%clk 00:07:27]} {[%emt 00:01:14]} 35. cxd3 {[%clk 00:01:33]} {[%emt
00:00:07]} Rc8 {[%clk 00:07:40]} {[%emt 00:00:16]} 36. Rh1 {[%clk 00:01:12]}
{[%emt 00:00:50]} Rb8 {[%clk 00:07:18]} {[%emt 00:00:53]} 37. Nb3 {[%clk
00:01:33]} {[%emt 00:00:09]} Kg8 {[%clk 00:05:51]} {[%emt 00:01:57]} 38. Kd2
{[%clk 00:01:22]} {[%emt 00:00:41]} c5 {[%clk 00:03:01]} {[%emt 00:03:21]} 39.
Kc2 {[%clk 00:01:30]} {[%emt 00:00:22]} Bb7 {[%clk 00:01:56]} {[%emt 00:01:34]}
40. Bd2 {[%clk 00:00:58]} {[%emt 00:01:02]} Bc6 {[%clk 00:01:51]} {[%emt
00:00:35]} 41. Be3 {[%clk 00:00:43]} {[%emt 00:00:45]} Ba4 {[%clk 00:01:14]}
{[%emt 00:01:07]} 42. Kc3 {[%clk 00:00:55]} {[%emt 00:00:18]} Bxb3 {[%clk
00:00:56]} {[%emt 00:00:48]} 43. axb3 {[%clk 00:01:12]} {[%emt 00:00:14]} Rb6
{[%clk 00:01:07]} {[%emt 00:00:19]} 44. Ra1 {[%clk 00:28:38]} {[%emt 00:03:01]}
a6 {[%clk 00:31:10]} {[%emt 00:00:29]} 45. g4 {[%clk 00:22:39]} {[%emt
00:06:29]} Kf7 {[%clk 00:31:30]} {[%emt 00:00:10]} 46. Kb2 {[%clk 00:09:47]}
{[%emt 00:13:23]} Rc6 {[%clk 00:31:45]} {[%emt 00:00:15]} 47. Rh1 {[%clk
00:09:00]} {[%emt 00:01:16]} Kg8 {[%clk 00:31:58]} {[%emt 00:00:17]} 48. Bd2
{[%clk 00:08:41]} {[%emt 00:00:49]} Kf7 {[%clk 00:31:49]} {[%emt 00:00:39]} 49.
Ba5 {[%clk 00:08:46]} {[%emt 00:00:25]} Ke8 {[%clk 00:32:13]} {[%emt 00:00:06]}
50. Kc3 {[%clk 00:08:53]} {[%emt 00:00:24]} Rc8 {[%clk 00:29:08]} {[%emt
00:03:35]} 51. Rh2 {[%clk 00:06:45]} {[%emt 00:02:37]} Kd7 {[%clk 00:26:52]}
{[%emt 00:02:46]} 52. Rb2 {[%clk 00:05:01]} {[%emt 00:02:14]} Kc6 {[%clk
00:24:17]} {[%emt 00:03:05]} 53. b4 {[%clk 00:04:24]} {[%emt 00:01:07]} Rb8
{[%clk 00:19:52]} {[%emt 00:04:55]} 54. bxc5 {[%clk 00:04:02]} {[%emt
00:00:52]} Rxb2 {[%clk 00:19:47]} {[%emt 00:00:35]} 55. Kxb2 {[%clk 00:04:27]}
{[%emt 00:00:06]} Bxh6 {[%clk 00:20:13]} {[%emt 00:00:03]} 56. Kc3 {[%clk
00:02:38]} {[%emt 00:02:19]} Kxc5 {[%clk 00:20:04]} {[%emt 00:00:39]} 57. Bb4+
{[%clk 00:02:47]} {[%emt 00:00:21]} Kc6 {[%clk 00:20:12]} {[%emt 00:00:22]} 58.
d4 {[%clk 00:02:40]} {[%emt 00:00:38]} exd4+ {[%clk 00:20:36]} {[%emt
00:00:05]} 59. Kxd4 {[%clk 00:03:02]} {[%emt 00:00:08]} Bg7 {[%clk 00:21:00]}
{[%emt 00:00:06]} 60. Be7 {[%clk 00:02:27]} {[%emt 00:01:04]} a5 {[%clk
00:21:00]} {[%emt 00:00:31]} 61. Ba3 {[%clk 00:02:06]} {[%emt 00:00:50]} a4
{[%clk 00:15:30]} {[%emt 00:06:02]} 62. Bc5 {[%clk 00:01:20]} {[%emt 00:01:13]}
Bh6 {[%clk 00:15:46]} {[%emt 00:00:16]} 63. Be7 {[%clk 00:01:12]} {[%emt
00:00:38]} Bg7 {[%clk 00:14:46]} {[%emt 00:01:29]} 64. Kc3 {[%clk 00:00:58]}
{[%emt 00:00:44]} Kd7 {[%clk 00:13:12]} {[%emt 00:02:05]} 65. Bc5 {[%clk
00:00:48]} {[%emt 00:00:40]} Kc6 {[%clk 00:13:33]} {[%emt 00:00:09]} 66. Bd4
{[%clk 00:00:48]} {[%emt 00:00:30]} h5 {[%clk 00:11:15]} {[%emt 00:02:48]} 67.
gxh5 {[%clk 00:01:08]} {[%emt 00:00:10]} g4 {[%clk 00:11:41]} {[%emt 00:00:03]}
68. Kb4 {[%clk 00:00:41]} {[%emt 00:00:58]} g3 {[%clk 00:11:55]} {[%emt
00:00:16]} 69. Kxa4 {[%clk 00:00:34]} {[%emt 00:00:37]} g2 {[%clk 00:12:18]}
{[%emt 00:00:06]} 70. Bg1 {[%clk 00:00:33]} {[%emt 00:00:32]} Bf8 {[%clk
00:12:36]} {[%emt 00:00:12]} 71. Kb3 {[%clk 00:00:43]} {[%emt 00:00:21]} Bc5
{[%clk 00:12:56]} {[%emt 00:00:10]} 72. Bh2 {[%clk 00:00:53]} {[%emt 00:00:19]}
Bd6 {[%clk 00:02:27]} {[%emt 00:10:59]} 73. Bg1 {[%clk 00:01:16]} {[%emt
00:00:07]} Bc5 {[%clk 00:02:55]} {[%emt 00:00:02]} 74. Bh2 {[%clk 00:01:36]}
{[%emt 00:00:10]} Bd6 {[%clk 00:03:12]} {[%emt 00:00:13]} 75. e5 {[%clk
00:02:00]} {[%emt 00:00:06]} Bxe5 {[%clk 00:03:24]} {[%emt 00:00:18]} 76. Bg1
{[%clk 00:02:20]} {[%emt 00:00:10]} Kd6 {[%emt 00:04:03]} 1-0

[Event "Masters Tournament (MTO)"]
[Site "Biel, Switzerland"]
[Date "2026.07.17"]
[Round "5.43"]
[White "Damen, Josephine"]
[Black "Wenger, Arejou"]
[Result "1-0"]
[TimeControl "100+30+30sec/move"]
[WhiteTitle "-"]
[BlackTitle "-"]
[WhiteFideId "1074369"]
[BlackFideId "1336584"]
[WhiteElo "1971"]
[BlackElo "1873"]

1. e4 {[%clk 01:40:56]} {[%emt 00:00:04]} c5 {[%clk 01:40:54]} {[%emt
00:00:07]} 2. Nf3 {[%clk 01:41:21]} {[%emt 00:00:04]} e6 {[%clk 01:41:21]}
{[%emt 00:00:05]} 3. d4 {[%clk 01:41:44]} {[%emt 00:00:06]} cxd4 {[%clk
01:41:46]} {[%emt 00:00:04]} 4. Nxd4 {[%clk 01:42:07]} {[%emt 00:00:06]} Nf6
{[%clk 01:42:11]} {[%emt 00:00:07]} 5. Nc3 {[%clk 01:42:30]} {[%emt 00:00:06]}
Nc6 {[%clk 01:42:36]} {[%emt 00:00:05]} 6. Ndb5 {[%clk 01:42:54]} {[%emt
00:00:07]} d6 {[%clk 01:42:31]} {[%emt 00:00:35]} 7. Bf4 {[%clk 01:43:18]}
{[%emt 00:00:05]} e5 {[%clk 01:42:57]} {[%emt 00:00:04]} 8. Bg5 {[%clk
01:43:45]} {[%emt 00:00:04]} a6 {[%clk 01:43:22]} {[%emt 00:00:05]} 9. Na3
{[%clk 01:44:10]} {[%emt 00:00:04]} b5 {[%clk 01:43:48]} {[%emt 00:00:04]} 10.
Bxf6 {[%clk 01:44:31]} {[%emt 00:00:09]} gxf6 {[%clk 01:44:11]} {[%emt
00:00:08]} 11. Nd5 {[%clk 01:44:56]} {[%emt 00:00:05]} f5 {[%clk 01:44:30]}
{[%emt 00:00:10]} 12. c3 {[%clk 01:45:21]} {[%emt 00:00:05]} Bg7 {[%clk
01:44:45]} {[%emt 00:00:15]} 13. exf5 {[%clk 01:45:46]} {[%emt 00:00:06]} Bxf5
{[%clk 01:45:09]} {[%emt 00:00:06]} 14. Nc2 {[%clk 01:46:07]} {[%emt 00:00:08]}
O-O {[%clk 01:44:55]} {[%emt 00:00:45]} 15. Nce3 {[%clk 01:46:33]} {[%emt
00:00:03]} Bd7 {[%clk 01:44:13]} {[%emt 00:01:12]} 16. Bd3 {[%clk 01:38:35]}
{[%emt 00:08:28]} f5 {[%clk 01:43:21]} {[%emt 00:01:22]} 17. O-O {[%clk
01:35:38]} {[%emt 00:03:27]} e4 {[%clk 01:42:08]} {[%emt 00:01:44]} 18. Bc2
{[%clk 01:35:55]} {[%emt 00:00:13]} Ne5 {[%clk 01:40:46]} {[%emt 00:01:51]} 19.
Nf4 {[%clk 01:29:35]} {[%emt 00:06:50]} Qg5 {[%clk 01:35:33]} {[%emt 00:05:42]}
20. Ned5 {[%clk 01:20:01]} {[%emt 00:10:05]} Kh8 {[%clk 01:28:29]} {[%emt
00:07:34]} 21. Qh5 {[%clk 01:09:57]} {[%emt 00:10:33]} Bh6 {[%clk 01:10:54]}
{[%emt 00:18:05]} 22. Qxg5 {[%clk 01:10:16]} {[%emt 00:00:12]} Bxg5 {[%clk
01:11:20]} {[%emt 00:00:05]} 23. a4 {[%clk 01:09:35]} {[%emt 00:01:10]} Rg8
{[%clk 01:06:12]} {[%emt 00:05:38]} 24. Rfd1 {[%clk 01:05:25]} {[%emt
00:04:40]} Bxf4 {[%clk 00:56:17]} {[%emt 00:10:25]} 25. Nxf4 {[%clk 01:05:48]}
{[%emt 00:00:06]} Rg4 {[%clk 00:56:31]} {[%emt 00:00:17]} 26. g3 {[%clk
00:54:25]} {[%emt 00:11:53]} Nf3+ {[%clk 00:31:02]} {[%emt 00:25:59]} 27. Kh1
{[%clk 00:49:48]} {[%emt 00:05:06]} e3 {[%clk 00:19:38]} {[%emt 00:11:55]} 28.
fxe3 {[%clk 00:47:50]} {[%emt 00:02:28]} Rxf4 {[%clk 00:13:25]} {[%emt
00:06:43]} 29. gxf4 {[%clk 00:26:26]} {[%emt 00:21:54]} Bc6 {[%clk 00:13:05]}
{[%emt 00:00:49]} 30. axb5 {[%clk 00:23:41]} {[%emt 00:03:16]} Bxb5 {[%clk
00:06:44]} {[%emt 00:06:51]} 31. Rxd6 {[%clk 00:23:13]} {[%emt 00:00:58]} Rg8
{[%clk 00:05:03]} {[%emt 00:02:10]} 32. Bxf5 {[%clk 00:21:05]} {[%emt
00:02:38]} Be2 {[%clk 00:03:56]} {[%emt 00:01:36]} 33. Bd3 {[%clk 00:17:54]}
{[%emt 00:03:41]} Bf1 {[%clk 00:00:38]} {[%emt 00:03:48]} 34. Rxf1 {[%clk
00:18:00]} {[%emt 00:00:25]} Rg2 {[%clk 00:00:31]} {[%emt 00:00:38]} 35. Kxg2
{[%clk 00:18:15]} {[%emt 00:00:15]} 1-0

[Event "Masters Tournament (MTO)"]
[Site "Biel, Switzerland"]
[Date "2026.07.17"]
[Round "5.44"]
[White "Heitmann, Erik"]
[Black "Vedant, Nayudu"]
[Result "1-0"]
[TimeControl "100+30+30sec/move"]
[WhiteTitle "-"]
[BlackTitle "-"]
[WhiteFideId "34608940"]
[BlackFideId "33369780"]
[WhiteElo "1949"]
[BlackElo "1797"]

1. d4 {[%clk 01:40:59]} {[%emt 00:10:57]} d5 {[%clk 01:40:27]} {[%emt
00:00:33]} 2. c4 {[%clk 01:41:23]} {[%emt 00:00:06]} e6 {[%clk 01:40:50]}
{[%emt 00:00:07]} 3. Nc3 {[%clk 01:41:23]} {[%emt 00:00:30]} Nf6 {[%clk
01:41:15]} {[%emt 00:00:05]} 4. Bg5 {[%clk 01:41:49]} {[%emt 00:00:04]} dxc4
{[%clk 01:41:39]} {[%emt 00:00:07]} 5. e3 {[%clk 01:41:57]} {[%emt 00:00:21]}
a6 {[%clk 01:42:04]} {[%emt 00:00:05]} 6. Bxc4 {[%clk 01:41:48]} {[%emt
00:00:38]} c5 {[%clk 01:42:30]} {[%emt 00:00:05]} 7. Nf3 {[%clk 01:41:51]}
{[%emt 00:00:27]} b5 {[%clk 01:42:47]} {[%emt 00:00:13]} 8. Bb3 {[%clk
01:41:34]} {[%emt 00:00:46]} Bb7 {[%clk 01:40:55]} {[%emt 00:02:23]} 9. Rc1
{[%clk 01:38:15]} {[%emt 00:03:47]} Nbd7 {[%clk 01:38:26]} {[%emt 00:03:01]} 10.
O-O {[%clk 01:37:35]} {[%emt 00:01:10]} Be7 {[%clk 01:37:44]} {[%emt 00:01:13]}
11. Qe2 {[%clk 01:34:56]} {[%emt 00:03:09]} O-O {[%clk 01:30:53]} {[%emt
00:07:19]} 12. Rfd1 {[%clk 01:34:27]} {[%emt 00:01:00]} Qb6 {[%clk 01:14:26]}
{[%emt 00:16:57]} 13. Ne5 {[%clk 01:18:28]} {[%emt 00:16:29]} Rfe8 {[%clk
01:03:14]} {[%emt 00:11:42]} 14. Bc2 {[%clk 01:05:07]} {[%emt 00:13:50]} h6
{[%clk 00:42:25]} {[%emt 00:21:20]} 15. Nxd7 {[%clk 00:53:11]} {[%emt
00:12:26]} Nxd7 {[%clk 00:40:43]} {[%emt 00:02:13]} 16. Bxe7 {[%clk 00:50:53]}
{[%emt 00:02:47]} Rxe7 {[%clk 00:40:58]} {[%emt 00:00:16]} 17. Ne4 {[%clk
00:42:31]} {[%emt 00:08:50]} c4 {[%clk 00:25:20]} {[%emt 00:16:09]} 18. Qd2
{[%clk 00:30:06]} {[%emt 00:12:55]} b4 {[%clk 00:14:20]} {[%emt 00:11:30]} 19.
Bb1 {[%clk 00:25:05]} {[%emt 00:05:31]} Rc8 {[%clk 00:12:01]} {[%emt 00:02:50]}
20. Qc2 {[%clk 00:22:24]} {[%emt 00:03:11]} Bxe4 {[%clk 00:07:49]} {[%emt
00:04:42]} 21. Qxe4 {[%clk 00:22:47]} {[%emt 00:00:06]} Nf6 {[%clk 00:08:18]}
{[%emt 00:00:02]} 22. Qf3 {[%clk 00:15:58]} {[%emt 00:07:18]} Rec7 {[%clk
00:07:30]} {[%emt 00:01:18]} 23. h3 {[%clk 00:11:37]} {[%emt 00:04:51]} c3
{[%clk 00:06:50]} {[%emt 00:01:10]} 24. bxc3 {[%clk 00:12:03]} {[%emt
00:00:05]} bxc3 {[%clk 00:02:25]} {[%emt 00:04:55]} 25. Bc2 {[%clk 00:09:20]}
{[%emt 00:03:12]} Qb2 {[%clk 00:01:47]} {[%emt 00:01:08]} 26. Qe2 {[%clk
00:08:13]} {[%emt 00:01:38]} Nd5 {[%clk 00:01:28]} {[%emt 00:00:48]} 27. Rb1
{[%clk 00:07:28]} {[%emt 00:01:15]} Qa3 {[%clk 00:01:07]} {[%emt 00:00:52]} 28.
Rb3 {[%clk 00:06:22]} {[%emt 00:01:35]} Qa5 {[%clk 00:00:32]} {[%emt 00:01:05]}
29. a3 {[%clk 00:04:51]} {[%emt 00:02:02]} Nb6 {[%clk 00:00:33]} {[%emt
00:00:28]} 30. Qd3 {[%clk 00:03:27]} {[%emt 00:01:54]} g6 {[%clk 00:00:45]}
{[%emt 00:00:18]} 31. Ra1 {[%clk 00:03:01]} {[%emt 00:00:56]} Na4 {[%clk
00:00:33]} {[%emt 00:00:42]} 32. Qe4 {[%clk 00:01:41]} {[%emt 00:01:49]} Nb2
{[%clk 00:00:32]} {[%emt 00:00:32]} 33. Qg4 {[%clk 00:01:51]} {[%emt 00:00:19]}
Kg7 {[%clk 00:00:31]} {[%emt 00:00:32]} 34. Rf1 {[%clk 00:01:12]} {[%emt
00:01:09]} Nc4 {[%clk 00:00:50]} {[%emt 00:00:11]} 35. Ra1 {[%clk 00:01:11]}
{[%emt 00:00:30]} Nd2 {[%clk 00:00:42]} {[%emt 00:00:39]} 36. Rb4 {[%clk
00:01:28]} {[%emt 00:00:13]} Rc4 {[%clk 00:00:34]} {[%emt 00:00:38]} 37. Rb7
{[%clk 00:01:23]} {[%emt 00:00:35]} Qd5 {[%clk 00:00:35]} {[%emt 00:00:29]} 38.
Qxg6+ {[%clk 00:01:32]} {[%emt 00:00:21]} Kh8 {[%clk 00:00:45]} {[%emt
00:00:20]} 39. Qh7# {[%clk 00:01:53]} {[%emt 00:00:08]} 1-0

[Event "Masters Tournament (MTO)"]
[Site "Biel, Switzerland"]
[Date "2026.07.17"]
[Round "5.45"]
[White "Petry, Martin"]
[Black "Hornung, Hans"]
[Result "1/2-1/2"]
[TimeControl "100+30+30sec/move"]
[WhiteTitle "-"]
[BlackTitle "-"]
[WhiteFideId "1352318"]
[BlackFideId "4615140"]
[WhiteElo "1999"]
[BlackElo "1924"]

1. Nf3 {[%clk 01:40:30]} {[%emt 19:10:54]} Nf6 {[%clk 01:34:31]} {[%emt
00:06:34]} 2. g3 {[%clk 01:41:17]} {[%emt 00:00:13]} c5 {[%clk 01:32:53]}
{[%emt 00:02:08]} 3. Bg2 {[%clk 01:41:11]} {[%emt 00:00:36]} Nc6 {[%clk
01:32:52]} {[%emt 00:00:31]} 4. O-O {[%clk 01:41:20]} {[%emt 00:00:21]} e5
{[%clk 01:32:40]} {[%emt 00:00:41]} 5. e4 {[%clk 01:41:35]} {[%emt 00:00:16]}
Be7 {[%clk 01:27:27]} {[%emt 00:05:41]} 6. Re1 {[%clk 01:39:51]} {[%emt
00:02:15]} O-O {[%clk 01:25:45]} {[%emt 00:02:12]} 7. h3 {[%clk 01:38:35]}
{[%emt 00:01:47]} d6 {[%emt 00:02:09]} 8. c3 {[%clk 01:37:44]} {[%emt
00:01:17]} Be6 {[%clk 01:18:22]} {[%emt 00:06:17]} 9. d4 {[%clk 01:36:31]}
{[%emt 00:01:44]} exd4 {[%clk 01:17:29]} {[%emt 00:01:22]} 10. cxd4 {[%clk
01:36:50]} {[%emt 00:00:11]} d5 {[%clk 01:16:56]} {[%emt 00:01:01]} 11. e5
{[%clk 01:29:23]} {[%emt 00:07:59]} Ne4 {[%clk 01:16:19]} {[%emt 00:01:05]} 12.
Be3 {[%clk 01:28:28]} {[%emt 00:01:27]} cxd4 {[%clk 01:12:29]} {[%emt
00:04:20]} 13. Bxd4 {[%clk 01:25:10]} {[%emt 00:03:48]} Qd7 {[%clk 01:08:51]}
{[%emt 00:04:08]} 14. Nc3 {[%clk 01:17:22]} {[%emt 00:08:18]} Nxd4 {[%clk
01:01:39]} {[%emt 00:07:42]} 15. Nxd4 {[%clk 01:15:14]} {[%emt 00:02:39]} Nxc3
{[%clk 00:58:00]} {[%emt 00:04:08]} 16. bxc3 {[%clk 01:15:37]} {[%emt
00:00:08]} Bxh3 {[%clk 00:57:00]} {[%emt 00:01:29]} 17. e6 {[%clk 01:14:15]}
{[%emt 00:01:53]} Bxe6 {[%clk 00:57:07]} {[%emt 00:00:23]} 18. Nxe6 {[%clk
01:14:21]} {[%emt 00:00:24]} fxe6 {[%clk 00:57:20]} {[%emt 00:00:17]} 19. Rxe6
{[%clk 01:14:40]} {[%emt 00:00:11]} Bc5 {[%clk 00:51:56]} {[%emt 00:05:53]} 20.
Re2 {[%clk 01:07:59]} {[%emt 00:07:11]} Rad8 {[%clk 00:49:19]} {[%emt
00:03:05]} 21. Qd3 {[%clk 00:50:25]} {[%emt 00:18:06]} Qf5 {[%clk 00:35:08]}
{[%emt 00:14:40]} 22. Qxf5 {[%clk 00:48:35]} {[%emt 00:02:21]} Rxf5 {[%clk
00:35:29]} {[%emt 00:00:09]} 23. Rd1 {[%clk 00:39:51]} {[%emt 00:09:15]} b6
{[%clk 00:31:10]} {[%emt 00:04:49]} 24. c4 {[%clk 00:32:32]} {[%emt 00:07:49]}
d4 {[%clk 00:30:39]} {[%emt 00:01:00]} 25. Bd5+ {[%clk 00:32:31]} {[%emt
00:00:32]} Kf8 {[%clk 00:29:04]} {[%emt 00:02:04]} 26. Kg2 {[%clk 00:30:05]}
{[%emt 00:02:57]} g6 {[%clk 00:28:03]} {[%emt 00:01:30]} 27. Rdd2 {[%clk
00:24:53]} {[%emt 00:05:42]} Kg7 {[%clk 00:28:08]} {[%emt 00:00:24]} 28. Be4
{[%clk 00:21:12]} {[%emt 00:04:12]} Rf6 {[%clk 00:27:23]} {[%emt 00:01:15]} 29.
Bd3 {[%clk 00:19:44]} {[%emt 00:01:58]} h5 {[%clk 00:27:12]} {[%emt 00:00:41]}
30. Re5 {[%clk 00:17:13]} {[%emt 00:03:02]} Rdf8 {[%clk 00:25:54]} {[%emt
00:01:46]} 31. Re4 {[%clk 00:08:12]} {[%emt 00:09:32]} Rf3 {[%clk 00:20:00]}
{[%emt 00:06:23]} 32. Re6 {[%clk 00:07:21]} {[%emt 00:01:22]} 1/2-1/2

[Event "Masters Tournament (MTO)"]
[Site "Biel, Switzerland"]
[Date "2026.07.17"]
[Round "5.46"]
[White "Carey, Michael"]
[Black "Simon, Ralf-Axel"]
[Result "1-0"]
[TimeControl "100+30+30sec/move"]
[WhiteTitle "-"]
[BlackTitle "-"]
[WhiteFideId "30923760"]
[BlackFideId "4603125"]
[WhiteElo "1946"]
[BlackElo "1935"]

1. Nf3 {[%clk 01:40:58]} d5 {[%clk 01:40:51]} {[%emt 00:00:09]} 2. e3 {[%clk
01:41:23]} {[%emt 00:00:06]} Nf6 {[%clk 01:27:21]} {[%emt 00:14:00]} 3. c4
{[%clk 01:41:31]} {[%emt 00:00:22]} g6 {[%clk 01:20:57]} {[%emt 00:06:53]} 4.
cxd5 {[%clk 01:37:44]} {[%emt 00:04:18]} Nxd5 {[%clk 01:13:18]} {[%emt
00:08:09]} 5. Nc3 {[%clk 01:37:06]} {[%emt 00:01:07]} Bg7 {[%clk 01:12:03]}
{[%emt 00:01:45]} 6. d4 {[%clk 01:25:21]} {[%emt 00:12:15]} O-O {[%clk
01:11:31]} {[%emt 00:01:02]} 7. Be2 {[%clk 01:24:21]} {[%emt 00:01:31]} c5
{[%clk 01:06:01]} {[%emt 00:06:01]} 8. O-O {[%clk 01:18:43]} {[%emt 00:06:07]}
cxd4 {[%clk 00:56:02]} {[%emt 00:10:29]} 9. Nxd5 {[%clk 01:16:42]} {[%emt
00:02:30]} Qxd5 {[%clk 00:53:37]} {[%emt 00:02:56]} 10. Nxd4 {[%clk 01:16:26]}
{[%emt 00:00:47]} a6 {[%clk 00:35:51]} {[%emt 00:18:15]} 11. Bf3 {[%clk
01:13:03]} {[%emt 00:03:52]} Qd6 {[%clk 00:35:41]} {[%emt 00:00:41]} 12. Qb3
{[%clk 01:02:46]} {[%emt 00:10:46]} Nd7 {[%clk 00:21:20]} {[%emt 00:14:52]} 13.
Rd1 {[%clk 00:58:24]} {[%emt 00:04:51]} Nc5 {[%clk 00:10:10]} {[%emt 00:11:40]}
14. Qc2 {[%clk 00:53:38]} {[%emt 00:05:16]} Qb6 {[%clk 00:10:08]} {[%emt
00:00:32]} 15. b4 {[%clk 00:34:46]} {[%emt 00:19:22]} Ne6 {[%clk 00:08:23]}
{[%emt 00:02:15]} 16. Bb2 {[%clk 00:33:10]} {[%emt 00:02:06]} Nxd4 {[%clk
00:03:05]} {[%emt 00:05:48]} 17. Bxd4 {[%clk 00:33:23]} {[%emt 00:00:17]} Bxd4
{[%clk 00:03:27]} {[%emt 00:00:08]} 18. Rxd4 {[%clk 00:33:35]} {[%emt
00:00:18]} Bf5 {[%clk 00:02:47]} {[%emt 00:01:11]} 19. Qc5 {[%clk 00:30:02]}
{[%emt 00:04:02]} Qxc5 {[%clk 00:00:59]} {[%emt 00:02:20]} 20. bxc5 {[%clk
00:30:30]} {[%emt 00:00:01]} Rac8 {[%clk 00:01:10]} {[%emt 00:00:19]} 21. Bxb7
{[%emt 00:02:27]} Rxc5 {[%clk 00:01:00]} {[%emt 00:01:55]} 22. Bxa6 {[%clk
00:32:20]} {[%emt 00:00:48]} Ra8 {[%clk 00:00:47]} {[%emt 00:00:42]} 23. Bf1
{[%emt 00:04:41]} 1-0